[Event "Titled Tuesday Blitz January 25 2022"]
[White "Song, Michael"]
[Black "Prieto Aranguren, Alain"]
[WhiteFideId "2613190"]
[BlackFideId "2268906"]
[WhiteElo "2274"]
[BlackElo "2235"]
[Result "1-0"]
[Round "11"]
[TimeControl "180+1"]
[Date "2022.01.26"]
[WhiteClock "0:00:21"]
[BlackClock "0:00:05"]

1. e4 {[%clk 0:03:00]}  c6 {[%clk 0:02:59]} 2. Nc3 {[%clk 0:02:59]}  d5 {[%clk 0:03:00]} 3. Nf3 {[%clk 0:02:59]}  Bg4 {[%clk 0:02:59]} 4. h3 {[%clk 0:03:00]}  Bh5 {[%clk 0:02:59]} 5. exd5 {[%clk 0:02:53]}  cxd5 {[%clk 0:02:59]} 6. g4 {[%clk 0:02:53]}  Bg6 {[%clk 0:02:59]} 7. d4 {[%clk 0:02:51]}  Nc6 {[%clk 0:02:59]} 8. Bg2 {[%clk 0:02:50]}  e6 {[%clk 0:02:38]} 9. O-O {[%clk 0:02:50]}  h5 {[%clk 0:02:27]} 10. g5 {[%clk 0:02:49]}  h4 {[%clk 0:02:14]} 11. Ne2 {[%clk 0:02:47]}  Nge7 {[%clk 0:02:02]} 12. c3 {[%clk 0:02:47]}  Nf5 {[%clk 0:02:02]} 13. Nf4 {[%clk 0:02:46]}  Nfe7 {[%clk 0:01:52]} 14. Nxg6 {[%clk 0:02:35]}  Nxg6 {[%clk 0:01:51]} 15. Qd3 {[%clk 0:02:34]}  Bd6 {[%clk 0:01:49]} 16. Be3 {[%clk 0:02:28]}  Qc7 {[%clk 0:01:47]} 17. Ne1 {[%clk 0:02:11]}  Nce7 {[%clk 0:01:43]} 18. Qb5+ {[%clk 0:02:08]}  Kf8 {[%clk 0:01:42]} 19. Nd3 {[%clk 0:02:07]}  Nf5 {[%clk 0:01:41]} 20. Rae1 {[%clk 0:02:05]}  a6 {[%clk 0:01:38]} 21. Qb3 {[%clk 0:02:02]}  Rc8 {[%clk 0:01:29]} 22. Qd1 {[%clk 0:02:01]}  Kg8 {[%clk 0:01:21]} 23. Bd2 {[%clk 0:01:57]}  Qc4 {[%clk 0:01:04]} 24. Qb1 {[%clk 0:01:50]}  Kh7 {[%clk 0:00:58]} 25. Bf3 {[%clk 0:01:49]}  Rhf8 {[%clk 0:00:56]} 26. Bg4 {[%clk 0:01:49]}  Nge7 {[%clk 0:00:51]} 27. Ne5 {[%clk 0:01:47]}  Bxe5 {[%clk 0:00:50]} 28. Rxe5 {[%clk 0:01:44]}  g6 {[%clk 0:00:49]} 29. Rfe1 {[%clk 0:01:37]}  Kg7 {[%clk 0:00:49]} 30. Bf4 {[%clk 0:01:35]}  Nc6 {[%clk 0:00:48]} 31. R5e2 {[%clk 0:01:25]}  Rfd8 {[%clk 0:00:38]} 32. Bd2 {[%clk 0:01:17]}  Nce7 {[%clk 0:00:34]} 33. Kg2 {[%clk 0:01:08]}  b5 {[%clk 0:00:34]} 34. Re5 {[%clk 0:01:03]}  a5 {[%clk 0:00:33]} 35. Be2 {[%clk 0:00:44]}  Qc6 {[%clk 0:00:32]} 36. Bd3 {[%clk 0:00:44]}  Qb6 {[%clk 0:00:27]} 37. R5e2 {[%clk 0:00:35]}  b4 {[%clk 0:00:26]} 38. Qd1 {[%clk 0:00:30]}  bxc3 {[%clk 0:00:22]} 39. bxc3 {[%clk 0:00:31]}  Qb2 {[%clk 0:00:12]} 40. Qb3 {[%clk 0:00:29]}  Rb8 {[%clk 0:00:08]} 41. Qa4 {[%clk 0:00:29]}  Rb7 {[%clk 0:00:06]} 42. Rb1 {[%clk 0:00:25]}  Qxb1 {[%clk 0:00:06]} 43. Bxb1 {[%clk 0:00:26]}  Rxb1 {[%clk 0:00:07]} 44. Qxa5 {[%clk 0:00:25]}  Rdb8 {[%clk 0:00:06]} 45. Bf4 {[%clk 0:00:24]}  R8b2 {[%clk 0:00:05]} 46. Rxb2 {[%clk 0:00:22]}  Rxb2 {[%clk 0:00:05]} 47. Be5+ {[%clk 0:00:22]}  Kh7 {[%clk 0:00:05]} 48. Qd8 {[%clk 0:00:21]} 1-0


[Site "https://www.chess.com"]

[Event "Titled Tuesday Blitz January 25 2022"]
[White "Sviridov, Valery"]
[Black "Bacrot, Etienne"]
[WhiteFideId "4120680"]
[BlackFideId "605506"]
[WhiteElo "2454"]
[BlackElo "2673"]
[Result "1-0"]
[Round "11"]
[TimeControl "180+1"]
[Date "2022.01.26"]
[WhiteClock "0:01:19"]
[BlackClock "0:00:42"]

1. Nf3 {[%clk 0:03:00]}  c5 {[%clk 0:03:00]} 2. g3 {[%clk 0:03:00]}  Nc6 {[%clk 0:02:59]} 3. Bg2 {[%clk 0:02:59]}  g6 {[%clk 0:03:00]} 4. O-O {[%clk 0:02:59]}  Bg7 {[%clk 0:03:00]} 5. c4 {[%clk 0:03:00]}  e5 {[%clk 0:03:00]} 6. Nc3 {[%clk 0:03:00]}  Nge7 {[%clk 0:03:01]} 7. Ne1 {[%clk 0:03:01]}  d6 {[%clk 0:03:01]} 8. Nc2 {[%clk 0:03:01]}  Be6 {[%clk 0:03:01]} 9. Ne3 {[%clk 0:03:01]}  Qd7 {[%clk 0:03:01]} 10. a3 {[%clk 0:03:00]}  O-O {[%clk 0:03:01]} 11. Rb1 {[%clk 0:03:00]}  Bh3 {[%clk 0:02:59]} 12. b4 {[%clk 0:03:00]}  b6 {[%clk 0:02:59]} 13. d3 {[%clk 0:02:37]}  Bxg2 {[%clk 0:02:44]} 14. Kxg2 {[%clk 0:02:38]}  f5 {[%clk 0:02:44]} 15. Qa4 {[%clk 0:02:30]}  f4 {[%clk 0:02:42]} 16. Ned5 {[%clk 0:02:30]}  Rac8 {[%clk 0:02:33]} 17. f3 {[%clk 0:02:20]}  Kh8 {[%clk 0:02:33]} 18. Bd2 {[%clk 0:02:20]}  Nf5 {[%clk 0:02:30]} 19. g4 {[%clk 0:02:10]}  Nfd4 {[%clk 0:02:23]} 20. Qd1 {[%clk 0:02:08]}  h5 {[%clk 0:02:13]} 21. h3 {[%clk 0:02:08]}  Bf6 {[%clk 0:02:12]} 22. Be1 {[%clk 0:02:07]}  Rf7 {[%clk 0:02:12]} 23. Bf2 {[%clk 0:02:07]}  Rg8 {[%clk 0:02:10]} 24. Ne4 {[%clk 0:02:07]}  Bd8 {[%clk 0:02:10]} 25. b5 {[%clk 0:02:06]}  Ne7 {[%clk 0:02:09]} 26. Bxd4 {[%clk 0:01:49]}  exd4 {[%clk 0:02:08]} 27. Nxe7 {[%clk 0:01:48]}  Bxe7 {[%clk 0:02:06]} 28. Qe1 {[%clk 0:01:41]}  Rh7 {[%clk 0:02:04]} 29. Rh1 {[%clk 0:01:40]}  d5 {[%clk 0:02:04]} 30. cxd5 {[%clk 0:01:40]}  Qxd5 {[%clk 0:02:05]} 31. Qc1 {[%clk 0:01:40]}  Bh4 {[%clk 0:01:57]} 32. Qc4 {[%clk 0:01:40]}  Qxc4 {[%clk 0:01:56]} 33. dxc4 {[%clk 0:01:40]}  Re7 {[%clk 0:01:55]} 34. Rb3 {[%clk 0:01:32]}  Rge8 {[%clk 0:01:55]} 35. Rd3 {[%clk 0:01:33]}  Kg7 {[%clk 0:01:43]} 36. a4 {[%clk 0:01:33]}  g5 {[%clk 0:01:34]} 37. Ra1 {[%clk 0:01:33]}  Rxe4 {[%clk 0:01:24]} 38. fxe4 {[%clk 0:01:33]}  Rxe4 {[%clk 0:01:24]} 39. Kf3 {[%clk 0:01:33]}  Re6 {[%clk 0:01:16]} 40. a5 {[%clk 0:01:34]}  hxg4+ {[%clk 0:01:14]} 41. hxg4 {[%clk 0:01:34]}  Kg6 {[%clk 0:01:14]} 42. axb6 {[%clk 0:01:33]}  axb6 {[%clk 0:01:14]} 43. Ra6 {[%clk 0:01:32]}  Kf6 {[%clk 0:01:14]} 44. Ra8 {[%clk 0:01:30]}  Ke7 {[%clk 0:01:09]} 45. Rh8 {[%clk 0:01:29]}  Kd7 {[%clk 0:01:01]} 46. Ra3 {[%clk 0:01:29]}  Kd6 {[%clk 0:01:01]} 47. Rh7 {[%clk 0:01:20]}  d3 {[%clk 0:00:56]} 48. Rxd3+ {[%clk 0:01:20]}  Ke5 {[%clk 0:00:56]} 49. Rf7 {[%clk 0:01:19]}  Re8 {[%clk 0:00:45]} 50. Rd5+ {[%clk 0:01:18]}  Ke6 {[%clk 0:00:44]} 51. Rb7 {[%clk 0:01:19]}  Rb8 {[%clk 0:00:42]} 52. Rxb8 {[%clk 0:01:19]} 1-0


[Site "https://www.chess.com"]

[Event "Titled Tuesday Blitz January 25 2022"]
[White "Tikhonov, Viacheslav"]
[Black "Dauner, Benedikt"]
[WhiteFideId "44196407"]
[BlackFideId "16225899"]
[WhiteElo "1773"]
[BlackElo "2230"]
[Result "1-0"]
[Round "11"]
[TimeControl "180+1"]
[Date "2022.01.26"]
[WhiteClock "0:01:01"]
[BlackClock "0:00:06"]

1. e4 {[%clk 0:03:00]}  c5 {[%clk 0:02:59]} 2. Nf3 {[%clk 0:03:00]}  g6 {[%clk 0:03:00]} 3. d4 {[%clk 0:02:55]}  cxd4 {[%clk 0:03:01]} 4. Nxd4 {[%clk 0:02:56]}  Nc6 {[%clk 0:03:00]} 5. c4 {[%clk 0:02:56]}  Bg7 {[%clk 0:02:59]} 6. Be3 {[%clk 0:02:55]}  Nf6 {[%clk 0:02:59]} 7. Nc3 {[%clk 0:02:55]}  O-O {[%clk 0:03:00]} 8. Be2 {[%clk 0:02:55]}  d6 {[%clk 0:03:00]} 9. O-O {[%clk 0:02:55]}  Bd7 {[%clk 0:03:00]} 10. h3 {[%clk 0:02:55]}  a5 {[%clk 0:02:59]} 11. Rc1 {[%clk 0:02:29]}  Nxd4 {[%clk 0:02:56]} 12. Bxd4 {[%clk 0:02:29]}  Bc6 {[%clk 0:02:57]} 13. Qd3 {[%clk 0:02:15]}  Nd7 {[%clk 0:02:55]} 14. Bxg7 {[%clk 0:02:13]}  Kxg7 {[%clk 0:02:56]} 15. f4 {[%clk 0:02:02]}  Qb6+ {[%clk 0:02:55]} 16. Kh1 {[%clk 0:02:02]}  Qxb2 {[%clk 0:02:43]} 17. Rb1 {[%clk 0:01:56]}  Qa3 {[%clk 0:02:40]} 18. Bg4 {[%clk 0:01:36]}  Nc5 {[%clk 0:01:53]} 19. Qd4+ {[%clk 0:01:34]}  f6 {[%clk 0:01:53]} 20. e5 {[%clk 0:01:30]}  dxe5 {[%clk 0:01:37]} 21. fxe5 {[%clk 0:01:30]}  Rad8 {[%clk 0:01:37]} 22. exf6+ {[%clk 0:01:27]}  exf6 {[%clk 0:01:37]} 23. Nd5 {[%clk 0:01:25]}  Nd7 {[%clk 0:00:49]} 24. Bxd7 {[%clk 0:01:16]}  Rxd7 {[%clk 0:00:44]} 25. Rxf6 {[%clk 0:01:06]}  Rxd5 {[%clk 0:00:38]} 26. cxd5 {[%clk 0:01:05]}  Rxf6 {[%clk 0:00:35]} 27. dxc6 {[%clk 0:01:04]}  bxc6 {[%clk 0:00:08]} 28. Rb7+ {[%clk 0:01:02]}  Kh6 {[%clk 0:00:06]} 29. Qh4# {[%clk 0:01:01]} 1-0


[Site "https://www.chess.com"]

[Event "Titled Tuesday Blitz January 25 2022"]
[White "Tsyhanchuk, Stanislav"]
[Black "Wagner, Dennis"]
[WhiteFideId "13505130"]
[BlackFideId "24650684"]
[WhiteElo "2078"]
[BlackElo "2355"]
[Result "0-1"]
[Round "11"]
[TimeControl "180+1"]
[Date "2022.01.26"]
[WhiteClock "0:00:03"]
[BlackClock "0:00:07"]

1. e4 {[%clk 0:03:00]}  c5 {[%clk 0:02:57]} 2. Nf3 {[%clk 0:03:00]}  d6 {[%clk 0:02:57]} 3. d4 {[%clk 0:03:00]}  cxd4 {[%clk 0:02:58]} 4. Nxd4 {[%clk 0:03:00]}  Nf6 {[%clk 0:02:59]} 5. Nc3 {[%clk 0:03:01]}  a6 {[%clk 0:03:00]} 6. Be3 {[%clk 0:03:00]}  e6 {[%clk 0:02:56]} 7. Qd2 {[%clk 0:02:59]}  b5 {[%clk 0:02:52]} 8. f3 {[%clk 0:02:30]}  Nbd7 {[%clk 0:02:51]} 9. a3 {[%clk 0:02:19]}  h5 {[%clk 0:02:49]} 10. Be2 {[%clk 0:02:19]}  Qc7 {[%clk 0:02:46]} 11. O-O {[%clk 0:02:18]}  Be7 {[%clk 0:02:41]} 12. f4 {[%clk 0:02:17]}  Ng4 {[%clk 0:02:39]} 13. Bxg4 {[%clk 0:02:16]}  hxg4 {[%clk 0:02:40]} 14. Qe2 {[%clk 0:02:06]}  Nf6 {[%clk 0:02:24]} 15. Rad1 {[%clk 0:01:45]}  Bb7 {[%clk 0:02:24]} 16. Ndxb5 {[%clk 0:01:12]}  axb5 {[%clk 0:02:22]} 17. Nxb5 {[%clk 0:01:13]}  Qc6 {[%clk 0:02:20]} 18. e5 {[%clk 0:00:59]}  dxe5 {[%clk 0:02:19]} 19. fxe5 {[%clk 0:00:58]}  Nd5 {[%clk 0:02:15]} 20. Bd4 {[%clk 0:00:47]}  Rc8 {[%clk 0:01:08]} 21. Na7 {[%clk 0:00:22]}  Qxc2 {[%clk 0:00:59]} 22. Qxg4 {[%clk 0:00:22]}  Qh7 {[%clk 0:00:24]} 23. Nxc8 {[%clk 0:00:18]}  Qxh2+ {[%clk 0:00:14]} 24. Kf2 {[%clk 0:00:18]}  Rh4 {[%clk 0:00:14]} 25. Rh1 {[%clk 0:00:11]}  Rxg4 {[%clk 0:00:10]} 26. Rxh2 {[%clk 0:00:11]}  Bxc8 {[%clk 0:00:11]} 27. Rh8+ {[%clk 0:00:11]}  Kd7 {[%clk 0:00:11]} 28. b4 {[%clk 0:00:11]}  Ba6 {[%clk 0:00:11]} 29. Bc5 {[%clk 0:00:10]}  Bxc5+ {[%clk 0:00:10]} 30. bxc5 {[%clk 0:00:11]}  Ra4 {[%clk 0:00:10]} 31. Rc1 {[%clk 0:00:08]}  Bb5 {[%clk 0:00:10]} 32. Rf8 {[%clk 0:00:07]}  Ke7 {[%clk 0:00:09]} 33. Rb8 {[%clk 0:00:07]}  Bc6 {[%clk 0:00:09]} 34. Rc8 {[%clk 0:00:07]}  Kd7 {[%clk 0:00:08]} 35. Rf8 {[%clk 0:00:07]}  Ke7 {[%clk 0:00:09]} 36. Rc8 {[%clk 0:00:07]}  Bd7 {[%clk 0:00:09]} 37. Rb8 {[%clk 0:00:06]}  Rxa3 {[%clk 0:00:08]} 38. c6 {[%clk 0:00:07]}  Be8 {[%clk 0:00:07]} 39. c7 {[%clk 0:00:07]}  Nxc7 {[%clk 0:00:07]} 40. Rxc7+ {[%clk 0:00:06]}  Bd7 {[%clk 0:00:07]} 41. Rbb7 {[%clk 0:00:07]}  Rd3 {[%clk 0:00:08]} 42. Ke2 {[%clk 0:00:06]}  Rd5 {[%clk 0:00:09]} 43. Kf3 {[%clk 0:00:05]}  Kd8 {[%clk 0:00:09]} 44. Ra7 {[%clk 0:00:03]}  Rd4 {[%clk 0:00:08]} 45. Rcb7 {[%clk 0:00:03]}  Rd5 {[%clk 0:00:07]} 46. Ke4 {[%clk 0:00:03]}  Ke8 {[%clk 0:00:07]} 47. Rb8+ {[%clk 0:00:03]}  Ke7 {[%clk 0:00:08]} 48. Rbb7 {[%clk 0:00:04]}  Rd1 {[%clk 0:00:08]} 49. g4 {[%clk 0:00:04]}  g5 {[%clk 0:00:07]} 50. Ke3 {[%clk 0:00:04]}  Kd8 {[%clk 0:00:08]} 51. Rb8+ {[%clk 0:00:04]}  Ke7 {[%clk 0:00:07]} 52. Rbb7 {[%clk 0:00:04]}  Rd5 {[%clk 0:00:08]} 53. Ke4 {[%clk 0:00:03]}  Ke8 {[%clk 0:00:07]} 0-1


[Site "https://www.chess.com"]

[Event "Titled Tuesday Blitz January 25 2022"]
[White "Urazayev, Arystanbek"]
[Black "Martinez Ramirez, Lennis"]
[WhiteFideId "13709810"]
[BlackFideId "3509079"]
[WhiteElo "2321"]
[BlackElo "2374"]
[Result "1-0"]
[Round "11"]
[TimeControl "180+1"]
[Date "2022.01.26"]
[WhiteClock "0:00:50"]
[BlackClock "0:00:02"]

1. c4 {[%clk 0:03:00]}  e5 {[%clk 0:02:58]} 2. g3 {[%clk 0:02:59]}  c6 {[%clk 0:02:56]} 3. Bg2 {[%clk 0:02:59]}  Nf6 {[%clk 0:02:55]} 4. Qa4 {[%clk 0:02:55]}  Na6 {[%clk 0:02:51]} 5. d3 {[%clk 0:02:51]}  h6 {[%clk 0:02:28]} 6. Nc3 {[%clk 0:02:49]}  Bd6 {[%clk 0:02:28]} 7. Nf3 {[%clk 0:02:46]}  O-O {[%clk 0:02:28]} 8. O-O {[%clk 0:02:47]}  Bc7 {[%clk 0:02:28]} 9. b4 {[%clk 0:02:46]}  d6 {[%clk 0:02:25]} 10. Bb2 {[%clk 0:02:45]}  Re8 {[%clk 0:02:23]} 11. a3 {[%clk 0:02:45]}  Bd7 {[%clk 0:02:21]} 12. Qb3 {[%clk 0:02:45]}  Be6 {[%clk 0:02:19]} 13. Qc2 {[%clk 0:02:45]}  Rc8 {[%clk 0:02:17]} 14. Rac1 {[%clk 0:02:45]}  Nb8 {[%clk 0:02:16]} 15. Qa4 {[%clk 0:02:44]}  a6 {[%clk 0:02:16]} 16. b5 {[%clk 0:02:45]}  axb5 {[%clk 0:02:14]} 17. cxb5 {[%clk 0:02:46]}  d5 {[%clk 0:02:13]} 18. Nd2 {[%clk 0:02:39]}  c5 {[%clk 0:02:07]} 19. e4 {[%clk 0:02:32]}  Nbd7 {[%clk 0:01:57]} 20. exd5 {[%clk 0:02:27]}  Nb6 {[%clk 0:01:56]} 21. Qh4 {[%clk 0:02:27]}  Nbxd5 {[%clk 0:01:37]} 22. Nxd5 {[%clk 0:02:26]}  Bxd5 {[%clk 0:01:35]} 23. Bxd5 {[%clk 0:02:16]}  Qxd5 {[%clk 0:01:36]} 24. Nc4 {[%clk 0:01:55]}  Qxd3 {[%clk 0:01:16]} 25. Rfd1 {[%clk 0:01:55]}  Qb3 {[%clk 0:01:15]} 26. b6 {[%clk 0:01:56]}  Bb8 {[%clk 0:01:02]} 27. Rb1 {[%clk 0:01:39]}  Qa4 {[%clk 0:01:00]} 28. Rdc1 {[%clk 0:01:24]}  Rcd8 {[%clk 0:00:57]} 29. Qh3 {[%clk 0:01:24]}  Qd7 {[%clk 0:00:46]} 30. Qxd7 {[%clk 0:01:24]}  Rxd7 {[%clk 0:00:45]} 31. a4 {[%clk 0:01:25]}  Nd5 {[%clk 0:00:26]} 32. a5 {[%clk 0:01:25]}  Nb4 {[%clk 0:00:26]} 33. Rd1 {[%clk 0:01:26]}  Rde7 {[%clk 0:00:18]} 34. Ba3 {[%clk 0:01:22]}  Na6 {[%clk 0:00:18]} 35. Rd5 {[%clk 0:01:23]}  Rc8 {[%clk 0:00:16]} 36. Rbd1 {[%clk 0:01:23]}  f6 {[%clk 0:00:16]} 37. Rd8+ {[%clk 0:01:23]}  Re8 {[%clk 0:00:16]} 38. Rxc8 {[%clk 0:01:22]}  Rxc8 {[%clk 0:00:16]} 39. Rd7 {[%clk 0:01:23]}  e4 {[%clk 0:00:08]} 40. Rxb7 {[%clk 0:01:23]}  Re8 {[%clk 0:00:05]} 41. g4 {[%clk 0:01:23]}  Kf8 {[%clk 0:00:05]} 42. Kg2 {[%clk 0:01:18]}  Kg8 {[%clk 0:00:05]} 43. h4 {[%clk 0:01:18]}  h5 {[%clk 0:00:05]} 44. g5 {[%clk 0:01:17]}  f5 {[%clk 0:00:04]} 45. Bb2 {[%clk 0:01:12]}  f4 {[%clk 0:00:04]} 46. Rxg7+ {[%clk 0:01:12]}  Kf8 {[%clk 0:00:05]} 47. g6 {[%clk 0:01:08]}  Re6 {[%clk 0:00:04]} 48. Rf7+ {[%clk 0:01:01]}  Kg8 {[%clk 0:00:04]} 49. Rf6 {[%clk 0:01:02]}  Rxf6 {[%clk 0:00:03]} 50. Bxf6 {[%clk 0:01:02]}  Nb4 {[%clk 0:00:03]} 51. Be5 {[%clk 0:01:00]}  Nc6 {[%clk 0:00:01]} 52. Bxb8 {[%clk 0:01:00]}  Nxb8 {[%clk 0:00:02]} 53. Kf1 {[%clk 0:00:49]}  Kg7 {[%clk 0:00:02]} 54. Ne5 {[%clk 0:00:50]}  Kf6 {[%clk 0:00:02]} 55. b7 {[%clk 0:00:50]} 1-0


[Site "https://www.chess.com"]

[Event "Titled Tuesday Blitz January 25 2022"]
[White "Vakhlamov, Igor L."]
[Black "Nozdrachev, Leonid"]
[WhiteFideId "24126748"]
[BlackFideId "24113433"]
[WhiteElo "2401"]
[BlackElo "2124"]
[Result "0-1"]
[Round "11"]
[TimeControl "180+1"]
[Date "2022.01.26"]
[WhiteClock "0:01:56"]
[BlackClock "0:00:54"]

1. e4 {[%clk 0:03:00]}  c6 {[%clk 0:02:57]} 2. Nf3 {[%clk 0:03:00]}  d5 {[%clk 0:02:56]} 3. Nc3 {[%clk 0:03:01]}  dxe4 {[%clk 0:02:55]} 4. Nxe4 {[%clk 0:03:02]}  Nf6 {[%clk 0:02:53]} 5. Qe2 {[%clk 0:03:02]}  Na6 {[%clk 0:02:49]} 6. c3 {[%clk 0:03:02]}  Nxe4 {[%clk 0:02:43]} 7. Qxe4 {[%clk 0:03:03]}  Nc5 {[%clk 0:02:43]} 8. Qc2 {[%clk 0:03:01]}  Bg4 {[%clk 0:02:36]} 9. Be2 {[%clk 0:03:01]}  Bxf3 {[%clk 0:02:35]} 10. Bxf3 {[%clk 0:03:01]}  Nd3+ {[%clk 0:02:33]} 11. Ke2 {[%clk 0:02:58]}  Nf4+ {[%clk 0:02:31]} 12. Kf1 {[%clk 0:02:58]}  Qd3+ {[%clk 0:02:15]} 13. Qxd3 {[%clk 0:02:57]}  Nxd3 {[%clk 0:02:16]} 14. Be4 {[%clk 0:02:46]}  O-O-O {[%clk 0:02:14]} 15. Ke2 {[%clk 0:02:46]}  Nxc1+ {[%clk 0:02:03]} 16. Raxc1 {[%clk 0:02:47]}  e6 {[%clk 0:02:02]} 17. d4 {[%clk 0:02:47]}  c5 {[%clk 0:02:00]} 18. dxc5 {[%clk 0:02:48]}  Bxc5 {[%clk 0:01:58]} 19. b4 {[%clk 0:02:45]}  Bb6 {[%clk 0:01:56]} 20. a4 {[%clk 0:02:39]}  a5 {[%clk 0:01:54]} 21. Rb1 {[%clk 0:02:38]}  Rd7 {[%clk 0:01:43]} 22. bxa5 {[%clk 0:02:32]}  Bxa5 {[%clk 0:01:44]} 23. Rb5 {[%clk 0:02:33]}  b6 {[%clk 0:01:39]} 24. c4 {[%clk 0:02:33]}  Rhd8 {[%clk 0:01:21]} 25. c5 {[%clk 0:02:18]}  Rd4 {[%clk 0:01:15]} 26. Kf3 {[%clk 0:02:10]}  Rxa4 {[%clk 0:01:08]} 27. cxb6 {[%clk 0:02:08]}  Ra3+ {[%clk 0:01:07]} 28. Ke2 {[%clk 0:01:57]}  Rd2+ {[%clk 0:01:05]} 29. Kf1 {[%clk 0:01:56]}  Rd1+ {[%clk 0:00:56]} 30. Ke2 {[%clk 0:01:56]}  Rxh1 {[%clk 0:00:56]} 31. b7+ {[%clk 0:01:56]}  Kb8 {[%clk 0:00:55]} 32. Rc5 {[%clk 0:01:56]}  Re1# {[%clk 0:00:54]} 0-1


[Site "https://www.chess.com"]

[Event "Titled Tuesday Blitz January 25 2022"]
[White "Vasquez Schroeder, Rodrigo"]
[Black "Mustafayev, Farid"]
[WhiteFideId "3400042"]
[BlackFideId "13408771"]
[WhiteElo "2568"]
[BlackElo "2129"]
[Result "0-1"]
[Round "11"]
[TimeControl "180+1"]
[Date "2022.01.26"]
[WhiteClock "0:00:06"]
[BlackClock "0:00:10"]

1. e4 {[%clk 0:03:00]}  c6 {[%clk 0:02:59]} 2. d4 {[%clk 0:02:59]}  d5 {[%clk 0:03:00]} 3. exd5 {[%clk 0:02:59]}  cxd5 {[%clk 0:03:00]} 4. c4 {[%clk 0:03:00]}  Nf6 {[%clk 0:03:00]} 5. Nc3 {[%clk 0:03:01]}  Nc6 {[%clk 0:02:54]} 6. Bg5 {[%clk 0:03:00]}  Ne4 {[%clk 0:02:49]} 7. cxd5 {[%clk 0:02:59]}  Nxc3 {[%clk 0:02:48]} 8. bxc3 {[%clk 0:02:59]}  Qxd5 {[%clk 0:02:49]} 9. Be3 {[%clk 0:02:40]}  Bf5 {[%clk 0:02:45]} 10. Nf3 {[%clk 0:02:39]}  e6 {[%clk 0:02:42]} 11. Be2 {[%clk 0:02:38]}  Ba3 {[%clk 0:02:38]} 12. Qd2 {[%clk 0:02:30]}  O-O {[%clk 0:02:38]} 13. O-O {[%clk 0:02:28]}  Rac8 {[%clk 0:02:30]} 14. Rfd1 {[%clk 0:02:18]}  Rfd8 {[%clk 0:02:30]} 15. Ne1 {[%clk 0:02:05]}  e5 {[%clk 0:02:15]} 16. Nc2 {[%clk 0:02:01]}  Bb2 {[%clk 0:02:06]} 17. Nb4 {[%clk 0:01:50]}  Nxb4 {[%clk 0:02:00]} 18. Qxb2 {[%clk 0:01:49]}  Nc2 {[%clk 0:01:58]} 19. Rac1 {[%clk 0:01:24]}  Nxe3 {[%clk 0:01:28]} 20. fxe3 {[%clk 0:01:23]}  exd4 {[%clk 0:01:23]} 21. cxd4 {[%clk 0:01:19]}  Be4 {[%clk 0:01:21]} 22. Bf1 {[%clk 0:01:17]}  Qg5 {[%clk 0:01:19]} 23. Qd2 {[%clk 0:01:17]}  h5 {[%clk 0:01:14]} 24. Rxc8 {[%clk 0:01:15]}  Rxc8 {[%clk 0:01:15]} 25. Rc1 {[%clk 0:01:16]}  Rxc1 {[%clk 0:01:14]} 26. Qxc1 {[%clk 0:01:16]}  h4 {[%clk 0:01:14]} 27. a3 {[%clk 0:01:16]}  h3 {[%clk 0:01:14]} 28. Qc8+ {[%clk 0:01:15]}  Kh7 {[%clk 0:01:13]} 29. Qxh3+ {[%clk 0:01:16]}  Kg8 {[%clk 0:01:13]} 30. Kf2 {[%clk 0:01:07]}  Qf6+ {[%clk 0:01:10]} 31. Kg1 {[%clk 0:01:06]}  Qd6 {[%clk 0:01:01]} 32. Qc8+ {[%clk 0:01:02]}  Kh7 {[%clk 0:01:01]} 33. Qc3 {[%clk 0:01:03]}  Qg6 {[%clk 0:00:56]} 34. a4 {[%clk 0:01:01]}  Qf5 {[%clk 0:00:55]} 35. a5 {[%clk 0:01:00]}  a6 {[%clk 0:00:54]} 36. Qd2 {[%clk 0:00:56]}  Qg5 {[%clk 0:00:53]} 37. Qf2 {[%clk 0:00:53]}  f5 {[%clk 0:00:51]} 38. h4 {[%clk 0:00:48]}  Qd8 {[%clk 0:00:50]} 39. Qe1 {[%clk 0:00:47]}  Qc7 {[%clk 0:00:45]} 40. Qd2 {[%clk 0:00:43]}  Qg3 {[%clk 0:00:43]} 41. Qf2 {[%clk 0:00:43]}  Qc7 {[%clk 0:00:43]} 42. Qe1 {[%clk 0:00:44]}  Qd6 {[%clk 0:00:39]} 43. Be2 {[%clk 0:00:42]}  Qd5 {[%clk 0:00:38]} 44. g3 {[%clk 0:00:40]}  Qa2 {[%clk 0:00:37]} 45. Bf1 {[%clk 0:00:32]}  Bc6 {[%clk 0:00:36]} 46. Be2 {[%clk 0:00:24]}  Qd5 {[%clk 0:00:35]} 47. Qf1 {[%clk 0:00:20]}  Qh1+ {[%clk 0:00:35]} 48. Kf2 {[%clk 0:00:21]}  Qh2+ {[%clk 0:00:36]} 49. Ke1 {[%clk 0:00:21]}  Qxg3+ {[%clk 0:00:36]} 50. Qf2 {[%clk 0:00:22]}  Qh3 {[%clk 0:00:32]} 51. Qf4 {[%clk 0:00:20]}  Be4 {[%clk 0:00:31]} 52. Qg5 {[%clk 0:00:20]}  Qh1+ {[%clk 0:00:30]} 53. Kd2 {[%clk 0:00:21]}  Qh2 {[%clk 0:00:21]} 54. h5 {[%clk 0:00:19]}  Qd6 {[%clk 0:00:18]} 55. Ke1 {[%clk 0:00:17]}  Qb4+ {[%clk 0:00:18]} 56. Kf2 {[%clk 0:00:18]}  Qd6 {[%clk 0:00:18]} 57. Bc4 {[%clk 0:00:15]}  Qh2+ {[%clk 0:00:15]} 58. Ke1 {[%clk 0:00:15]}  Qh1+ {[%clk 0:00:14]} 59. Kd2 {[%clk 0:00:11]}  Qh2+ {[%clk 0:00:10]} 60. Kc3 {[%clk 0:00:10]}  Qd6 {[%clk 0:00:11]} 61. Bf7 {[%clk 0:00:07]}  Qa3+ {[%clk 0:00:10]} 62. Kd2 {[%clk 0:00:05]}  Qxa5+ {[%clk 0:00:10]} 63. Kd1 {[%clk 0:00:06]}  Qb6 {[%clk 0:00:10]} 64. Bg6+ {[%clk 0:00:04]}  Kg8 {[%clk 0:00:10]} 65. Qe7 {[%clk 0:00:05]}  Qb1+ {[%clk 0:00:08]} 66. Ke2 {[%clk 0:00:05]}  Qc2+ {[%clk 0:00:09]} 67. Ke1 {[%clk 0:00:05]}  Qc1+ {[%clk 0:00:09]} 68. Ke2 {[%clk 0:00:06]}  Qc2+ {[%clk 0:00:09]} 69. Kf1 {[%clk 0:00:06]}  Qg2+ {[%clk 0:00:08]} 70. Ke1 {[%clk 0:00:06]}  Qg1+ {[%clk 0:00:09]} 71. Kd2 {[%clk 0:00:06]}  Qf2+ {[%clk 0:00:09]} 72. Kc3 {[%clk 0:00:05]}  Qxe3+ {[%clk 0:00:10]} 73. Kc4 {[%clk 0:00:06]}  Bd3+ {[%clk 0:00:09]} 74. Kc5 {[%clk 0:00:06]}  Qxe7+ {[%clk 0:00:10]} 0-1


[Site "https://www.chess.com"]